[Event "FIDE Grand Swiss 2023"]
[Site "Villa Marina, Douglas, Isle of Man"]
[Date "2023.10.27"]
[Round "3.16"]
[White "Grandelius, Nils"]
[Black "Huschenbeth, Niclas"]
[Result "1/2-1/2"]
[WhiteElo "2689"]
[BlackElo "2605"]
[EventDate "2023.10.25"]
[ECO "C83"]
[PlyCount "60"]
[BlackFideId "24604747"]
[TimeControl "40/100 + 20/50 + 15 + 30s/move"]
[WhiteFideId "1710400"]

1.e4 {[%clk 01:40:41] [%emt 00:00:17]} 1...e5 {[%clk 01:40:38] [%emt 00:00:22]} 
2.Nf3 {[%clk 01:40:42] [%emt 00:00:28]} 2...Nc6 {[%clk 01:41:04] [%emt
00:00:06]} 3.Bb5 {[%clk 01:40:33] [%emt 00:00:39]} 3...a6 {[%clk 01:41:27] [%emt
00:00:07]} 4.Ba4 {[%clk 01:40:58] [%emt 00:00:05]} 4...Nf6 {[%clk 01:41:50]
[%emt 00:00:07]} 5.O-O {[%clk 01:40:56] [%emt 00:00:31]} 5...Nxe4 {[%clk
01:41:59] [%emt 00:00:22]} 6.d4 {[%clk 01:40:08] [%emt 00:01:18]} 6...Be7 
{[%clk 01:42:00] [%emt 00:00:28]} 7.Re1 {[%clk 01:39:36] [%emt 00:01:03]} 
7...b5 {[%clk 01:41:26] [%emt 00:01:05]} 8.Bb3 {[%clk 01:34:18] [%emt 00:05:48]} 
8...d5 {[%clk 01:41:39] [%emt 00:00:16]} 9.dxe5 {[%clk 01:34:42] [%emt
00:00:06]} 9...Be6 {[%clk 01:42:03] [%emt 00:00:06]} 10.c3 {[%clk 01:34:48]
[%emt 00:00:24]} 10...O-O {[%clk 01:42:13] [%emt 00:00:20]} 11.Nbd2 {[%clk
01:34:59] [%emt 00:00:19]} 11...Nc5 {[%clk 01:42:36] [%emt 00:00:07]} 12.Nd4 
{[%clk 01:35:23] [%emt 00:00:06]} 12...Nxd4 {[%clk 01:42:56] [%emt 00:00:10]} 
13.cxd4 {[%clk 01:35:49] [%emt 00:00:03]} 13...Nd3 {[%clk 01:43:19] [%emt
00:00:07]} 14.Re3 {[%clk 01:36:14] [%emt 00:00:06]} 14...Nxc1 {[%clk 01:43:44]
[%emt 00:00:06]} 15.Rxc1 {[%clk 01:36:40] [%emt 00:00:04]} 15...a5 {[%clk
01:44:05] [%emt 00:00:09]} 16.Rec3 {[%clk 01:35:38] [%emt 00:01:31]} 16...g6 
{[%clk 01:44:24] [%emt 00:00:11]} 17.Nf3 {[%clk 01:32:10] [%emt 00:03:58]} 
17...a4 {[%clk 01:26:46] [%emt 00:18:08]} 18.Bc2 {[%clk 01:32:16] [%emt
00:00:24]} 18...a3 {[%clk 01:25:55] [%emt 00:01:21]} 19.b3 {[%clk 01:14:05]
[%emt 00:18:42]} 19...b4 {[%clk 01:19:02] [%emt 00:07:22]} 20.Rc6 {[%clk
00:55:44] [%emt 00:18:51]} 20...Bd7 {[%clk 01:18:21] [%emt 00:01:11]} 21.Bd3 
{[%clk 00:56:10] [%emt 00:00:04]} 21...Bxc6 {[%clk 01:18:46] [%emt 00:00:05]} 
22.Rxc6 {[%clk 00:56:36] [%emt 00:00:04]} 22...Kg7 {[%clk 01:03:10] [%emt
00:16:07]} 23.g3 {[%clk 00:49:40] [%emt 00:07:25]} 23...Rb8 {[%clk 00:37:57]
[%emt 00:25:43]} 24.Qc2 {[%clk 00:41:29] [%emt 00:08:41]} 24...Rb7 {[%clk
00:32:33] [%emt 00:05:54]} 25.Kg2 {[%clk 00:36:53] [%emt 00:05:05]} 25...Qb8 
{[%clk 00:32:00] [%emt 00:01:04]} 26.h4 {[%clk 00:27:17] [%emt 00:10:06]} 
26...Rb6 {[%clk 00:28:22] [%emt 00:04:08]} 27.Rxc7 {[%clk 00:27:39] [%emt
00:00:08]} 27...Rb7 {[%clk 00:28:45] [%emt 00:00:07]} 28.Rc6 {[%clk 00:28:03]
[%emt 00:00:06]} 28...Rb6 {[%clk 00:28:22] [%emt 00:00:53]} 29.Rc7 {[%clk
00:28:11] [%emt 00:00:23]} 29...Rb7 {[%clk 00:28:47] [%emt 00:00:04]} 30.Rc6 
{[%clk 00:28:37] [%emt 00:00:04]} 30...Rb6 {[%clk 00:29:01] [%emt 00:00:16]} 1/2-1/2

[Event "FIDE Grand Swiss 2023"]
[Site "Villa Marina, Douglas, Isle of Man"]
[Date "2023.10.27"]
[Round "3.17"]
[White "Sargissian, Gabriel"]
[Black "Maurizzi, Marc`andria"]
[Result "0-1"]
[WhiteElo "2686"]
[BlackElo "2555"]
[EventDate "2023.10.25"]
[ECO "D37"]
[PlyCount "62"]
[BlackFideId "36083534"]
[TimeControl "40/100 + 20/50 + 15 + 30s/move"]
[WhiteFideId "13300881"]

1.d4 {[%clk 01:40:55] [%emt 00:00:04]} 1...Nf6 {[%clk 01:40:49] [%emt 00:00:11]} 
2.c4 {[%clk 01:41:08] [%emt 00:00:17]} 2...e6 {[%clk 01:41:15] [%emt 00:00:05]} 
3.Nf3 {[%clk 01:41:00] [%emt 00:00:38]} 3...d5 {[%clk 01:41:41] [%emt 00:00:04]} 
4.Nc3 {[%clk 01:40:55] [%emt 00:00:34]} 4...Be7 {[%clk 01:38:29] [%emt
00:03:42]} 5.Bf4 {[%clk 01:40:41] [%emt 00:00:45]} 5...O-O {[%clk 01:38:07]
[%emt 00:00:52]} 6.e3 {[%clk 01:39:26] [%emt 00:01:45]} 6...Nbd7 {[%clk
01:37:36] [%emt 00:01:01]} 7.c5 {[%clk 01:38:32] [%emt 00:01:24]} 7...Ne4 
{[%clk 01:34:13] [%emt 00:03:52]} 8.h4 {[%clk 01:33:54] [%emt 00:05:08]} 8...f6 
{[%clk 01:32:04] [%emt 00:02:40]} 9.Qc2 {[%clk 01:25:38] [%emt 00:08:46]} 
9...Nxc3 {[%clk 01:32:08] [%emt 00:00:26]} 10.bxc3 {[%clk 01:14:31] [%emt
00:11:38]} 10...e5 {[%clk 01:32:10] [%emt 00:00:27]} 11.Bg3 {[%clk 01:11:07]
[%emt 00:03:54]} 11...e4 {[%clk 01:32:27] [%emt 00:00:13]} 12.Ng1 {[%clk
00:57:15] [%emt 00:14:21]} 12...b6 {[%clk 01:22:11] [%emt 00:10:46]} 13.cxb6 
{[%clk 00:48:56] [%emt 00:08:49]} 13...Nxb6 {[%clk 01:18:33] [%emt 00:04:08]} 
14.Nh3 {[%clk 00:49:19] [%emt 00:00:07]} 14...a5 {[%clk 01:12:45] [%emt
00:06:17]} 15.Nf4 {[%clk 00:42:48] [%emt 00:07:02]} 15...Qd7 {[%clk 01:12:44]
[%emt 00:00:31]} 16.f3 {[%clk 00:36:08] [%emt 00:07:10]} 16...f5 {[%clk
01:00:24] [%emt 00:12:50]} 17.c4 {[%clk 00:36:04] [%emt 00:00:34]} 17...c5 
{[%clk 00:49:51] [%emt 00:11:03]} 18.Rb1 {[%clk 00:36:05] [%emt 00:00:29]} 
18...Qd8 {[%clk 00:40:17] [%emt 00:10:01]} 19.cxd5 {[%clk 00:25:20] [%emt
00:11:18]} 19...cxd4 {[%clk 00:38:28] [%emt 00:02:19]} 20.exd4 {[%clk 00:25:36]
[%emt 00:00:15]} 20...Bb4+ {[%clk 00:36:31] [%emt 00:02:26]} 21.Rxb4 {[%clk
00:21:13] [%emt 00:04:53]} 21...axb4 {[%clk 00:36:49] [%emt 00:00:12]} 22.d6 
{[%clk 00:17:40] [%emt 00:04:04]} 22...Qxd6 {[%clk 00:35:06] [%emt 00:02:13]} 
23.Qc5 {[%clk 00:17:10] [%emt 00:01:00]} 23...Qd8 {[%clk 00:33:24] [%emt
00:02:12]} 24.Qxb4 {[%clk 00:14:11] [%emt 00:03:29]} 24...Rf7 {[%clk 00:32:13]
[%emt 00:01:41]} 25.Bb5 {[%clk 00:13:27] [%emt 00:01:14]} 25...exf3 {[%clk
00:31:52] [%emt 00:00:51]} 26.O-O {[%clk 00:13:45] [%emt 00:00:12]} 26...Bd7 
{[%clk 00:25:27] [%emt 00:06:55]} 27.d5 {[%clk 00:13:22] [%emt 00:00:53]} 
27...Nxd5 {[%clk 00:23:17] [%emt 00:02:40]} 28.Nxd5 {[%clk 00:11:37] [%emt
00:02:15]} 28...Bxb5 {[%clk 00:23:28] [%emt 00:00:19]} 29.Rd1 {[%clk 00:08:25]
[%emt 00:03:41]} 29...Bc6 {[%clk 00:20:11] [%emt 00:03:48]} 30.Qc4 {[%clk
00:08:44] [%emt 00:00:11]} 30...Bxd5 {[%clk 00:20:03] [%emt 00:00:38]} 31.Rxd5 
{[%clk 00:09:11] [%emt 00:00:04]} 31...Qb6+ {[%clk 00:20:14] [%emt 00:00:18]} 0-1

[Event "FIDE Grand Swiss 2023"]
[Site "Villa Marina, Douglas, Isle of Man"]
[Date "2023.10.27"]
[Round "3.18"]
[White "Aravindh, Chithambaram Vr."]
[Black "Tabatabaei, M. Amin"]
[Result "1/2-1/2"]
[WhiteElo "2649"]
[BlackElo "2685"]
[EventDate "2023.10.25"]
[ECO "C59"]
[PlyCount "61"]
[BlackFideId "12521213"]
[TimeControl "40/100 + 20/50 + 15 + 30s/move"]
[WhiteFideId "5072786"]

1.e4 {[%clk 01:40:55] [%emt 00:00:03]} 1...e5 {[%clk 01:39:54] [%emt 00:01:07]} 
2.Nf3 {[%clk 01:41:15] [%emt 00:00:10]} 2...Nc6 {[%clk 01:39:41] [%emt
00:00:43]} 3.Bc4 {[%clk 01:41:30] [%emt 00:00:14]} 3...Nf6 {[%clk 01:39:39]
[%emt 00:00:31]} 4.Ng5 {[%clk 01:41:26] [%emt 00:00:36]} 4...d5 {[%clk 01:39:55]
[%emt 00:00:14]} 5.exd5 {[%clk 01:41:49] [%emt 00:00:06]} 5...Na5 {[%clk
01:40:20] [%emt 00:00:06]} 6.Bb5+ {[%clk 01:42:06] [%emt 00:00:12]} 6...c6 
{[%clk 01:40:42] [%emt 00:00:08]} 7.dxc6 {[%clk 01:42:29] [%emt 00:00:07]} 
7...bxc6 {[%clk 01:41:06] [%emt 00:00:06]} 8.Be2 {[%clk 01:42:47] [%emt
00:00:10]} 8...h6 {[%clk 01:38:56] [%emt 00:02:41]} 9.Nf3 {[%clk 01:43:09] [%emt
00:00:08]} 9...e4 {[%clk 01:36:18] [%emt 00:03:09]} 10.Ne5 {[%clk 01:43:32]
[%emt 00:00:06]} 10...Bd6 {[%clk 01:28:39] [%emt 00:08:10]} 11.d4 {[%clk
01:43:22] [%emt 00:00:39]} 11...exd3 {[%clk 01:27:28] [%emt 00:01:42]} 12.Nxd3 
{[%clk 01:43:44] [%emt 00:00:08]} 12...O-O {[%clk 01:23:45] [%emt 00:04:13]} 
13.O-O {[%clk 01:43:38] [%emt 00:00:35]} 13...Qc7 {[%clk 01:20:29] [%emt
00:03:47]} 14.g3 {[%clk 01:43:37] [%emt 00:00:31]} 14...Bh3 {[%clk 01:12:31]
[%emt 00:08:28]} 15.Re1 {[%clk 01:43:45] [%emt 00:00:21]} 15...Rad8 {[%clk
01:12:53] [%emt 00:00:09]} 16.Nd2 {[%clk 01:44:03] [%emt 00:00:12]} 16...c5 
{[%clk 01:11:22] [%emt 00:02:01]} 17.b3 {[%clk 01:44:25] [%emt 00:00:07]} 
17...c4 {[%clk 00:59:36] [%emt 00:12:16]} 18.bxc4 {[%clk 01:43:38] [%emt
00:01:17]} 18...Nxc4 {[%clk 00:51:52] [%emt 00:08:15]} 19.Nxc4 {[%clk 01:37:06]
[%emt 00:07:02]} 19...Qxc4 {[%clk 00:52:13] [%emt 00:00:08]} 20.Bf3 {[%clk
01:21:12] [%emt 00:16:25]} 20...Bb4 {[%clk 00:44:36] [%emt 00:08:07]} 21.Bd2 
{[%clk 01:19:47] [%emt 00:01:54]} 21...Bxd2 {[%clk 00:44:26] [%emt 00:00:40]} 
22.Qxd2 {[%clk 01:20:11] [%emt 00:00:06]} 22...Bf5 {[%clk 00:44:26] [%emt
00:00:30]} 23.Qa5 {[%clk 01:10:29] [%emt 00:10:13]} 23...Qxc2 {[%clk 00:34:21]
[%emt 00:10:35]} 24.Qxf5 {[%clk 01:09:12] [%emt 00:01:46]} 24...Qxd3 {[%clk
00:34:36] [%emt 00:00:16]} 25.Qxd3 {[%clk 01:09:22] [%emt 00:00:20]} 25...Rxd3 
{[%clk 00:34:58] [%emt 00:00:09]} 26.Kg2 {[%clk 01:09:45] [%emt 00:00:06]} 
26...Rc8 {[%clk 00:30:26] [%emt 00:05:00]} 27.Rac1 {[%clk 01:06:47] [%emt
00:03:29]} 27...Rxc1 {[%clk 00:30:05] [%emt 00:00:51]} 28.Rxc1 {[%clk 01:07:12]
[%emt 00:00:05]} 28...g5 {[%clk 00:28:05] [%emt 00:02:30]} 29.Rc6 {[%clk
01:02:36] [%emt 00:05:06]} 29...Kg7 {[%clk 00:28:28] [%emt 00:00:07]} 30.Ra6 
{[%clk 01:02:56] [%emt 00:00:11]} 30...Rd7 {[%clk 00:28:52] [%emt 00:00:07]} 
31.Ra5 {[%clk 01:00:11] [%emt 00:03:14]} 1/2-1/2

[Event "FIDE Grand Swiss 2023"]
[Site "Villa Marina, Douglas, Isle of Man"]
[Date "2023.10.27"]
[Round "3.19"]
[White "Kuybokarov, Temur"]
[Black "Abasov, Nijat"]
[Result "1/2-1/2"]
[WhiteElo "2584"]
[BlackElo "2679"]
[EventDate "2023.10.25"]
[ECO "B76"]
[PlyCount "158"]
[BlackFideId "13402960"]
[TimeControl "40/100 + 20/50 + 15 + 30s/move"]
[WhiteFideId "14203049"]

1.e4 {[%clk 01:40:52] [%emt 00:00:07]} 1...c5 {[%clk 01:40:56] [%emt 00:00:05]} 
2.Nf3 {[%clk 01:41:07] [%emt 00:00:15]} 2...d6 {[%clk 01:41:21] [%emt 00:00:05]} 
3.d4 {[%clk 01:41:19] [%emt 00:00:18]} 3...cxd4 {[%clk 01:41:44] [%emt
00:00:07]} 4.Nxd4 {[%clk 01:41:37] [%emt 00:00:12]} 4...Nf6 {[%clk 01:42:09]
[%emt 00:00:05]} 5.Nc3 {[%clk 01:41:54] [%emt 00:00:13]} 5...g6 {[%clk 01:42:34]
[%emt 00:00:05]} 6.Be3 {[%clk 01:40:49] [%emt 00:01:35]} 6...Bg7 {[%clk
01:42:32] [%emt 00:00:31]} 7.f3 {[%clk 01:40:46] [%emt 00:00:34]} 7...O-O 
{[%clk 01:42:55] [%emt 00:00:07]} 8.Qd2 {[%clk 01:40:13] [%emt 00:01:02]} 
8...Nc6 {[%clk 01:43:18] [%emt 00:00:08]} 9.O-O-O {[%clk 01:36:32] [%emt
00:04:10]} 9...d5 {[%clk 01:43:12] [%emt 00:00:37]} 10.exd5 {[%clk 01:34:35]
[%emt 00:02:26]} 10...Nxd5 {[%clk 01:42:50] [%emt 00:00:52]} 11.Nxc6 {[%clk
01:34:35] [%emt 00:00:30]} 11...bxc6 {[%clk 01:43:15] [%emt 00:00:05]} 12.Bd4 
{[%clk 01:34:55] [%emt 00:00:10]} 12...e5 {[%clk 01:43:41] [%emt 00:00:04]} 
13.Bc5 {[%clk 01:34:54] [%emt 00:00:31]} 13...Be6 {[%clk 01:44:05] [%emt
00:00:06]} 14.Ne4 {[%clk 01:30:14] [%emt 00:05:10]} 14...Re8 {[%clk 01:44:06]
[%emt 00:00:30]} 15.Bc4 {[%clk 01:25:29] [%emt 00:05:15]} 15...a5 {[%clk
01:43:57] [%emt 00:00:39]} 16.a4 {[%clk 01:12:13] [%emt 00:13:46]} 16...Qc7 
{[%clk 01:42:55] [%emt 00:01:32]} 17.g4 {[%clk 00:57:59] [%emt 00:14:45]} 
17...Nf4 {[%clk 01:37:27] [%emt 00:05:57]} 18.Bd6 {[%clk 00:52:14] [%emt
00:06:15]} 18...Qb6 {[%clk 01:37:13] [%emt 00:00:44]} 19.Bc5 {[%clk 00:51:04]
[%emt 00:01:40]} 19...Qc7 {[%clk 01:37:33] [%emt 00:00:10]} 20.Bd6 {[%clk
00:47:58] [%emt 00:03:35]} 20...Qb6 {[%clk 01:31:02] [%emt 00:07:02]} 21.Bxe6 
{[%clk 00:42:43] [%emt 00:05:45]} 21...Nxe6 {[%clk 01:30:43] [%emt 00:00:49]} 
22.Qc3 {[%clk 00:32:17] [%emt 00:10:56]} 22...c5 {[%clk 01:20:58] [%emt
00:10:15]} 23.Kb1 {[%clk 00:21:46] [%emt 00:11:02]} 23...Nd4 {[%clk 01:17:56]
[%emt 00:03:32]} 24.Bxc5 {[%clk 00:17:05] [%emt 00:05:11]} 24...Qa6 {[%clk
01:17:07] [%emt 00:01:18]} 25.h4 {[%clk 00:13:15] [%emt 00:04:21]} 25...Rec8 
{[%clk 01:11:06] [%emt 00:06:31]} 26.h5 {[%clk 00:13:05] [%emt 00:00:41]} 
26...Rab8 {[%clk 01:09:48] [%emt 00:01:47]} 27.hxg6 {[%clk 00:12:39] [%emt
00:00:56]} 27...hxg6 {[%clk 00:59:54] [%emt 00:10:24]} 28.g5 {[%clk 00:07:44]
[%emt 00:05:25]} 28...Qb7 {[%clk 00:58:35] [%emt 00:01:49]} 29.b3 {[%clk
00:06:42] [%emt 00:01:32]} 29...Qd7 {[%clk 00:58:19] [%emt 00:00:46]} 30.f4 
{[%clk 00:05:15] [%emt 00:01:57]} 30...Nxb3 {[%clk 00:28:47] [%emt 00:30:02]} 
31.cxb3 {[%clk 00:05:07] [%emt 00:00:37]} 31...Qxa4 {[%clk 00:29:15] [%emt
00:00:03]} 32.b4 {[%clk 00:03:16] [%emt 00:02:21]} 32...exf4 {[%clk 00:29:23]
[%emt 00:00:23]} 33.Rd4 {[%clk 00:00:33] [%emt 00:03:12]} 33...Rxc5 {[%clk
00:09:03] [%emt 00:20:50]} 34.Nxc5 {[%clk 00:00:55] [%emt 00:00:08]} 34...Qc6 
{[%clk 00:09:31] [%emt 00:00:02]} 35.Rhd1 {[%clk 00:00:51] [%emt 00:00:34]} 
35...Bxd4 {[%clk 00:07:54] [%emt 00:02:06]} 36.Rxd4 {[%clk 00:01:10] [%emt
00:00:12]} 36...f3 {[%clk 00:08:19] [%emt 00:00:05]} 37.Qe3 {[%clk 00:00:33]
[%emt 00:01:07]} 37...axb4 {[%clk 00:03:09] [%emt 00:05:40]} 38.Rh4 {[%clk
00:00:52] [%emt 00:00:11]} 38...Qd5 {[%clk 00:03:35] [%emt 00:00:04]} 39.Ne4 
{[%clk 00:01:10] [%emt 00:00:12]} 39...f2 {[%clk 00:00:54] [%emt 00:03:10]} 
40.Nf6+ {[%clk 00:00:31] [%emt 00:01:09]} 40...Kg7 {[%clk 00:00:32] [%emt
00:00:52]} 41.Rh7+ {[%clk 00:26:28] [%emt 00:24:33]} 41...Kf8 {[%clk 00:50:45]
[%emt 00:00:17]} 42.Nd7+ {[%clk 00:24:09] [%emt 00:02:47]} 42...Kg8 {[%clk
00:51:00] [%emt 00:00:18]} 43.Rh8+ {[%clk 00:23:05] [%emt 00:01:34]} 43...Kg7 
{[%clk 00:51:01] [%emt 00:00:28]} 44.Rh7+ {[%clk 00:22:20] [%emt 00:01:16]} 
44...Kg8 {[%clk 00:51:19] [%emt 00:00:11]} 45.Nf6+ {[%clk 00:21:40] [%emt
00:01:11]} 45...Kf8 {[%clk 00:51:34] [%emt 00:00:14]} 46.Nxd5 {[%clk 00:20:44]
[%emt 00:01:27]} 46...f1=Q+ {[%clk 00:51:54] [%emt 00:00:10]} 47.Qc1 {[%clk
00:19:33] [%emt 00:01:40]} 47...Qf5+ {[%clk 00:34:21] [%emt 00:18:03]} 48.Qc2 
{[%clk 00:19:19] [%emt 00:00:44]} 48...Qxc2+ {[%clk 00:25:40] [%emt 00:09:12]} 
49.Kxc2 {[%clk 00:19:43] [%emt 00:00:06]} 49...Rb5 {[%clk 00:25:10] [%emt
00:01:00]} 50.Rh8+ {[%clk 00:19:40] [%emt 00:00:33]} 50...Kg7 {[%clk 00:25:36]
[%emt 00:00:03]} 51.Rd8 {[%clk 00:20:00] [%emt 00:00:10]} 51...b3+ {[%clk
00:25:51] [%emt 00:00:15]} 52.Kb2 {[%clk 00:20:11] [%emt 00:00:20]} 52...Rc5 
{[%clk 00:26:16] [%emt 00:00:05]} 53.Kxb3 {[%clk 00:18:24] [%emt 00:02:16]} 
53...Rc1 {[%clk 00:26:42] [%emt 00:00:04]} 54.Re8 {[%clk 00:16:28] [%emt
00:02:26]} 54...Rg1 {[%clk 00:24:12] [%emt 00:03:01]} 55.Re5 {[%clk 00:16:45]
[%emt 00:00:12]} 55...Rg4 {[%clk 00:23:43] [%emt 00:00:59]} 56.Nf6 {[%clk
00:15:48] [%emt 00:01:27]} 56...Rg1 {[%clk 00:23:23] [%emt 00:00:50]} 57.Kc4 
{[%clk 00:15:59] [%emt 00:00:19]} 57...Rc1+ {[%clk 00:21:44] [%emt 00:02:08]} 
58.Kd5 {[%clk 00:16:10] [%emt 00:00:20]} 58...Rd1+ {[%clk 00:21:53] [%emt
00:00:20]} 59.Kc6 {[%clk 00:16:29] [%emt 00:00:11]} 59...Rc1+ {[%clk 00:21:02]
[%emt 00:01:21]} 60.Kd7 {[%clk 00:16:27] [%emt 00:00:32]} 60...Rd1+ {[%clk
00:17:54] [%emt 00:03:38]} 61.Ke7 {[%clk 00:16:14] [%emt 00:00:44]} 61...Ra1 
{[%clk 00:18:19] [%emt 00:00:04]} 62.Ne8+ {[%clk 00:16:01] [%emt 00:00:43]} 
62...Kg8 {[%clk 00:18:34] [%emt 00:00:16]} 63.Nd6 {[%clk 00:16:25] [%emt
00:00:06]} 63...Rf1 {[%clk 00:16:58] [%emt 00:02:04]} 64.Re3 {[%clk 00:08:08]
[%emt 00:08:48]} 64...Kg7 {[%clk 00:14:58] [%emt 00:02:30]} 65.Re5 {[%clk
00:09:38] [%emt 00:14:01]} 65...Kg8 {[%clk 00:28:29] [%emt 00:01:59]} 66.Kd7 
{[%clk 00:06:45] [%emt 00:03:23]} 66...Rg1 {[%clk 00:23:48] [%emt 00:05:10]} 
67.Ke8 {[%clk 00:00:48] [%emt 00:06:28]} 67...Rf1 {[%clk 00:23:38] [%emt
00:00:40]} 68.Ne4 {[%clk 00:01:07] [%emt 00:00:10]} 68...Ra1 {[%clk 00:22:46]
[%emt 00:01:22]} 69.Nf6+ {[%clk 00:00:36] [%emt 00:01:02]} 69...Kg7 {[%clk
00:23:13] [%emt 00:00:03]} 70.Nd7 {[%clk 00:00:43] [%emt 00:00:23]} 70...Ra8+ 
{[%clk 00:20:57] [%emt 00:02:46]} 71.Ke7 {[%clk 00:01:09] [%emt 00:00:04]} 
71...Ra1 {[%clk 00:21:23] [%emt 00:00:03]} 72.Re3 {[%clk 00:00:33] [%emt
00:01:06]} 72...Rg1 {[%clk 00:21:17] [%emt 00:00:37]} 73.Re5 {[%clk 00:00:50]
[%emt 00:00:13]} 73...Ra1 {[%clk 00:21:28] [%emt 00:00:18]} 74.Nc5 {[%clk
00:00:32] [%emt 00:00:48]} 74...Ra7+ {[%clk 00:21:11] [%emt 00:00:47]} 75.Kd6 
{[%clk 00:00:51] [%emt 00:00:12]} 75...f6 {[%clk 00:20:41] [%emt 00:01:00]} 
76.Ne6+ {[%clk 00:00:39] [%emt 00:00:42]} 76...Kf7 {[%clk 00:21:06] [%emt
00:00:05]} 77.Nd8+ {[%clk 00:01:03] [%emt 00:00:06]} 77...Kg7 {[%clk 00:21:32]
[%emt 00:00:03]} 78.Re8 {[%clk 00:00:36] [%emt 00:00:58]} 78...fxg5 {[%clk
00:21:31] [%emt 00:00:31]} 79.Ne6+ {[%clk 00:01:02] [%emt 00:00:04]} 79...Kf6 
{[%clk 00:20:48] [%emt 00:01:12]} 1/2-1/2